fUST/lending_fUST_20240915
["ID","MTS","AMOUNT","RATE_DAILY","PERIOD"]
[338232791,1726403447078,-500.0,0.00027397,5]
[338232792,1726403447088,-500.0,0.00027397,5]
[338232793,1726403447100,-500.0,0.00027397,5]
[338232794,1726403447112,-500.0,0.00027397,5]
[338232795,1726403447123,-500.0,0.00027397,5]
[338232796,1726403447135,-500.0,0.00027397,5]
[338232797,1726403447146,-500.0,0.00027397,5]
[338232798,1726403447155,-500.0,0.00027397,5]
[338232799,1726403447165,-500.0,0.00027397,5]
[338232800,1726403447174,-500.0,0.00027397,5]
[338232801,1726403447184,-500.0,0.00027397,5]
[338232802,1726403447196,-500.0,0.00027397,5]
[338232803,1726403447207,-500.0,0.00027397,5]
[338232804,1726403447216,-634.11,0.00027397,5]
[338232805,1726403447226,-505.38114452,0.00027397,5]
[338232806,1726403447237,-500.0,0.00027397,5]
[338232807,1726403447246,-151.0,0.00027397,7]
[338232808,1726403447255,-151.0,0.00027397,7]
[338232809,1726403447266,-151.0,0.00027397,7]
[338232810,1726403447276,-500.0,0.00027397,5]
[338232811,1726403447286,-500.0,0.00027397,5]
[338232812,1726403447295,-500.0,0.00027397,5]
[338232813,1726403447305,-500.0,0.00027397,5]
[338232814,1726403447315,-151.0,0.00027397,7]
[338232815,1726403447325,-500.0,0.00027397,5]
[338232816,1726403447334,-151.0,0.00027397,7]
[338232817,1726403447344,-500.0,0.00027397,5]
[338232818,1726403447354,-500.0,0.00027397,5]
[338232819,1726403447364,-151.0,0.00027397,7]
[338232820,1726403447373,-538.605515,0.00027397,5]
[338232821,1726403447383,-151.0,0.00027397,7]
[338232822,1726403447392,-151.0,0.00027397,7]
[338232823,1726403447401,-151.0,0.00027397,7]
[338232824,1726403447410,-151.0,0.00027397,7]
[338232825,1726403447421,-151.0,0.00027397,7]
[338232826,1726403447431,-176.964615,0.00027397,7]
[338232827,1726403447440,-500.0,0.00027397,5]
[338232828,1726403447450,-500.0,0.00027397,5]
[338232829,1726403447459,-1184.43,0.00027397,5]
[338232830,1726403447469,-501.87955308,0.00027397,5]
[338232831,1726403447478,-991.27,0.00027397,5]
[338232832,1726403447488,-500.0,0.00027397,5]
[338232833,1726403447497,-503.85084491,0.00027397,5]
[338232834,1726403447506,-1620.12,0.00027397,5]
[338232835,1726403447516,-500.0,0.00027397,5]
[338232836,1726403447526,-500.0,0.00027397,5]
[338232837,1726403447536,-500.49680411,0.00027397,5]
[338232838,1726403447551,-501.86708346,0.00027397,5]
[338232839,1726403447560,-500.0,0.00027397,5]
[338232840,1726403447569,-500.0,0.00027397,5]
[338232841,1726403447579,-151.0,0.00027397,7]
[338232842,1726403447588,-151.0,0.00027397,7]
[338232843,1726403447597,-151.0,0.00027397,7]
[338232844,1726403447606,-151.0,0.00027397,7]
[338232845,1726403447615,-741.81,0.00027397,5]
[338232846,1726403447624,-500.0,0.00027397,5]
[338232847,1726403447633,-651.42,0.00027397,5]
[338232848,1726403447643,-500.0,0.00027397,5]
[338232849,1726403447651,-500.0,0.00027397,5]
[338232850,1726403447660,-500.0,0.00027397,5]
[338232851,1726403447674,-500.0,0.00027397,5]
[338232852,1726403447684,-500.0,0.00027397,5]
[338232853,1726403447693,-504.48046982,0.00027397,5]
[338232854,1726403447702,-500.0,0.00027397,5]
[338232855,1726403447711,-1363.88,0.00027397,5]
[338232856,1726403447720,-1723.61,0.00027397,2]
[338232857,1726403447730,-500.0,0.00027397,5]
[338232858,1726403447741,-229.68,0.00027397,5]
[338232859,1726403447750,-500.0,0.00027397,5]
[338232860,1726403447759,-500.0,0.00027397,5]
[338232861,1726403447768,-500.0,0.00027397,5]
[338232862,1726403447778,-500.0,0.00027397,5]
[338232863,1726403447786,-500.0,0.00027397,5]
[338232864,1726403447796,-765.87,0.00027397,5]
[338232865,1726403447805,-551.08195047,0.00027397,5]
[338232866,1726403447814,-500.0,0.00027397,5]
[338232867,1726403447825,-1517.85,0.00027397,5]
[338232868,1726403447836,-500.0,0.00027397,5]
[338232869,1726403447846,-500.0,0.00027397,5]
[338232870,1726403447856,-151.0,0.00027397,7]
[338232871,1726403447865,-151.0,0.00027397,7]
[338232872,1726403447875,-151.0,0.00027397,7]
[338232873,1726403447884,-151.0,0.00027397,7]
[338232874,1726403447893,-500.0,0.00027397,5]
[338232875,1726403447902,-151.0,0.00027397,7]
[338232876,1726403447911,-254.13822917,0.00027397,7]
[338232877,1726403447932,-1305.13,0.00027397,5]
[338232878,1726403447942,-600.0,0.00027397,3]
[338232879,1726403447952,-500.0,0.00027397,5]
[338232880,1726403447962,-500.0,0.00027397,5]
[338232881,1726403447972,-500.0,0.00027397,5]
[338232882,1726403447987,-500.0,0.00027397,5]
[338232883,1726403447997,-500.0,0.00027397,5]
[338232884,1726403448007,-500.0,0.00027397,5]
[338232885,1726403448017,-500.0,0.00027397,5]
[338232886,1726403448027,-500.0,0.00027397,5]
[338232887,1726403448037,-500.0,0.00027397,5]
[338232888,1726403448047,-500.0,0.00027397,5]
[338232889,1726403448057,-500.0,0.00027397,5]
[338232890,1726403448066,-500.0,0.00027397,5]
[338232891,1726403448076,-500.0,0.00027397,5]
[338232892,1726403448086,-500.0,0.00027397,5]
[338232893,1726403448095,-500.0,0.00027397,5]
[338232894,1726403448105,-500.0,0.00027397,5]
[338232895,1726403448115,-500.0,0.00027397,5]
[338232896,1726403448124,-1189.99,0.00027397,5]
[338232897,1726403448134,-500.0,0.00027397,5]
[338232898,1726403448143,-595.34,0.00027397,5]
[338232899,1726403448153,-500.0,0.00027397,5]
[338232900,1726403448162,-500.0,0.00027397,5]
[338232901,1726403448173,-500.0,0.00027397,5]
[338232902,1726403448182,-151.0,0.00027397,7]
[338232903,1726403448191,-151.0,0.00027397,7]
[338232904,1726403448201,-151.0,0.00027397,7]
[338232905,1726403448213,-151.0,0.00027397,7]
[338232906,1726403448223,-151.0,0.00027397,7]
[338232907,1726403448233,-151.0,0.00027397,7]
[338232908,1726403448243,-151.0,0.00027397,7]
[338232909,1726403448253,-500.0,0.00027397,5]
[338232910,1726403448264,-151.0,0.00027397,7]
[338232911,1726403448273,-151.0,0.00027397,7]
[338232912,1726403448283,-151.0,0.00027397,7]
[338232913,1726403448294,-151.0,0.00027397,7]
[338232914,1726403448304,-257.56897506,0.00027397,5]
[338232915,1726403448314,-151.0,0.00027397,7]
[338232916,1726403448324,-240.713376,0.00027397,7]
[338232917,1726403448333,-500.0,0.00027397,5]
[338232918,1726403448343,-500.0,0.00027397,5]
[338232919,1726403448352,-500.0,0.00027397,5]
[338232920,1726403448362,-1001.58429669,0.00027397,2]
[338232921,1726403448371,-500.0,0.00027397,5]
[338232922,1726403448381,-500.0,0.00027397,5]
[338232923,1726403448391,-607.88,0.00027397,5]
[338232924,1726403448402,-500.0,0.00027397,5]
[338232925,1726403448411,-500.0,0.00027397,5]
[338232926,1726403448423,-500.0,0.00027397,5]
[338232927,1726403448433,-500.0,0.00027397,5]
[338232928,1726403448445,-752.08,0.00027397,5]
[338232929,1726403448666,-632.63,0.00027397,5]
[338232930,1726403448677,-500.0,0.00027397,5]
[338232931,1726403448686,-500.0,0.00027397,5]
[338232932,1726403448695,-500.0,0.00027397,5]
[338232933,1726403448706,-450.38529157,0.00027397,5]
[338232957,1726404558166,-2901.22531339,0.0002,15]
[338232967,1726404631692,-1329.6389115,0.0002,15]
[338232968,1726404631703,-300.0,0.00024109,2]
[338232969,1726404631713,-300.0,0.00024109,2]
[338232970,1726404631722,-2554.23641589,0.0002411,2]
[338232971,1726404631744,-1229.57276018,0.0002411,2]
[338232972,1726404631758,-3000.0,0.00024201,2]
[338232973,1726404631768,-190.2489648,0.0002421,2]
[338232974,1726404631777,-11723.60490007,0.00024902,2]
[338232975,1726404637798,-818.75508754,0.00024902,2]
[338232976,1726404637859,-12357.64001239,0.00024902,2]
[338232977,1726404637870,-168.0,0.00025,2]
[338232978,1726404637880,-163.336442,0.00025432,2]
[338232979,1726404637889,-168.0,0.0002589,2]
[338232980,1726404637899,-420.0,0.00026142,2]
[338232981,1726404637908,-420.0,0.0002652,2]
[338232982,1726404637918,-158.45,0.000266,31]
[338232983,1726404637928,-153.0,0.00026849,2]
[338232984,1726404637937,-153.0,0.00026849,2]
[338232985,1726404637948,-153.0,0.00026849,2]
[338232987,1726404637959,-1000.0,0.00027,2]
[338232989,1726404637970,-2920.03,0.00027,30]
[338232991,1726404637980,-150.0,0.00027,2]
[338232992,1726404637989,-157.09926174,0.0002719,2]
[338232994,1726404637998,-849.98448107,0.00027256,2]
[338232996,1726404638008,-876.516624,0.00027276,2]
[338232998,1726404638017,-876.51662399,0.00027281,2]
[338233000,1726404638026,-876.51662399,0.00027287,2]
[338233001,1726404638036,-27110.5244346,0.0002729,4]
[338233003,1726404638047,-1637.51164407,0.0002729,4]
[338233005,1726404638056,-876.51662399,0.00027292,2]
[338233006,1726404638066,-1570.74166746,0.00027297,2]
[338233008,1726404638075,-876.51662399,0.00027297,2]
[338233010,1726404638084,-1200.0,0.000273,5]
[338233011,1726404638094,-215.58,0.00027366,3]
[338233012,1726404638106,-500.0,0.00027373,2]
[338233014,1726404638115,-27110.5244346,0.00027376,4]
[338233016,1726404638125,-1637.51164407,0.00027376,4]
[338233018,1726404638135,-611.61,0.00027376,2]
[338233019,1726404638144,-611.61,0.00027376,2]
[338233021,1726404638155,-611.61,0.00027376,2]
[338233022,1726404638164,-611.61,0.00027376,2]
[338233024,1726404638174,-611.61,0.00027376,2]
[338233025,1726404638184,-611.61,0.00027376,2]
[338233026,1726404638193,-611.61,0.00027376,2]
[338233027,1726404638203,-611.61,0.00027376,2]
[338233028,1726404638215,-611.61,0.00027376,2]
[338233030,1726404638226,-611.61,0.00027376,2]
[338233031,1726404638235,-10813.53,0.00027376,2]
[338233032,1726404638244,-189773.671042,0.00027377,4]
[338233033,1726404638254,-14737.6047966,0.00027377,4]
[338233034,1726404638264,-1637.51164407,0.00027387,4]
[338233035,1726404638274,-13100.0931526,0.00027387,4]
[338233036,1726404638283,-2400.0,0.0002739,2]
[338233037,1726404638293,-150.01,0.00027396,2]
[338233038,1726404638302,-1807.76023579,0.00027396,5]
[338233039,1726404638312,-406.36349621,0.00027396,2]
[338233040,1726404638321,-500.0,0.00027396,2]
[338233041,1726404638331,-286.35981418,0.00027396,2]
[338233042,1726404638340,-188.7902033,0.00027396,2]
[338233043,1726404638349,-500.0,0.00027396,2]
[338233044,1726404638359,-390.00528235,0.00027396,2]
[338233045,1726404638368,-500.0,0.00027396,2]
[338233046,1726404638378,-500.0,0.00027396,2]
[338233047,1726404638387,-26278.67745442,0.00027397,5]
[338233048,1726404638397,-2964.99215992,0.00027397,5]
[338233049,1726404638406,-238.85459533,0.00027397,7]
[338233050,1726404638415,-500.0,0.00027397,5]
[338233051,1726404638424,-151.0,0.00027397,7]
[338233052,1726404638433,-151.0,0.00027397,7]
[338233053,1726404638443,-500.0,0.00027397,5]
[338233054,1726404638453,-151.0,0.00027397,7]
[338233055,1726404638462,-151.0,0.00027397,7]
[338233056,1726404638471,-151.0,0.00027397,7]
[338233057,1726404638481,-151.0,0.00027397,7]
[338233058,1726404638490,-151.0,0.00027397,7]
[338233059,1726404638500,-151.0,0.00027397,7]
[338233060,1726404638509,-151.0,0.00027397,7]
[338233061,1726404638519,-501.53507232,0.00027397,5]
[338233062,1726404638529,-151.0,0.00027397,7]
[338233063,1726404638538,-151.0,0.00027397,7]
[338233064,1726404638549,-151.0,0.00027397,7]
[338233065,1726404638559,-211.036628,0.00027397,7]
[338233066,1726404638570,-500.0,0.00027397,5]
[338233067,1726404638581,-500.0,0.00027397,5]
[338233068,1726404638591,-500.0,0.00027397,5]
[338233069,1726404638602,-500.0,0.00027397,5]
[338233070,1726404638612,-500.0,0.00027397,5]
[338233071,1726404638621,-500.0,0.00027397,5]
[338233072,1726404638630,-500.0,0.00027397,5]
[338233073,1726404638640,-500.0,0.00027397,5]
[338233074,1726404638649,-500.0,0.00027397,5]
[338233075,1726404638659,-500.0,0.00027397,5]
[338233076,1726404638669,-500.0,0.00027397,5]
[338233077,1726404638678,-500.0,0.00027397,5]
[338233078,1726404638688,-500.0,0.00027397,5]
[338233079,1726404638698,-500.0,0.00027397,5]
[338233080,1726404638709,-151.0,0.00027397,7]
[338233081,1726404638719,-151.0,0.00027397,7]
[338233082,1726404638729,-151.0,0.00027397,7]
[338233083,1726404638739,-501.41696664,0.00027397,5]
[338233084,1726404638751,-151.0,0.00027397,7]
[338233085,1726404638760,-151.0,0.00027397,7]
[338233086,1726404638770,-151.404534,0.00027397,7]
[338233087,1726404638779,-752.92,0.00027397,5]
[338233088,1726404638789,-500.0,0.00027397,5]
[338233089,1726404638798,-500.0,0.00027397,5]
[338233090,1726404638808,-1804.54,0.00027397,5]
[338233091,1726404638817,-501.98198763,0.00027397,5]
[338233092,1726404638831,-500.0,0.00027397,5]
[338233093,1726404638841,-451.95225744,0.00027397,5]
[338233094,1726404638850,-500.0,0.00027397,5]
[338233095,1726404638860,-1431.6,0.00027397,5]
[338233096,1726404638869,-500.0,0.00027397,5]
[338233097,1726404638879,-1710.67,0.00027397,5]
[338233098,1726404638889,-505.25604899,0.00027397,5]
[338233099,1726404638899,-500.0,0.00027397,5]
[338233100,1726404638908,-960.35,0.00027397,5]
[338233101,1726404638918,-500.0,0.00027397,5]
[338233102,1726404638927,-500.0,0.00027397,5]
[338233103,1726404638937,-500.0,0.00027397,5]
[338233104,1726404638947,-586.46,0.00027397,5]
[338233105,1726404638957,-500.0,0.00027397,5]
[338233106,1726404638967,-151.0,0.00027397,7]
[338233107,1726404638976,-500.0,0.00027397,5]
[338233108,1726404638986,-852.96,0.00027397,5]
[338233109,1726404638996,-500.0,0.00027397,5]
[338233110,1726404639006,-542.55294065,0.00027397,5]
[338233111,1726404639015,-500.0,0.00027397,5]
[338233112,1726404639027,-500.0,0.00027397,5]
[338233113,1726404639038,-500.0,0.00027397,5]
[338233114,1726404639047,-500.0,0.00027397,5]
[338233115,1726404639057,-500.0,0.00027397,5]
[338233116,1726404639068,-500.0,0.00027397,5]
[338233117,1726404639077,-502.16208379,0.00027397,5]
[338233118,1726404639087,-1019.86,0.00027397,5]
[338233119,1726404639098,-500.0,0.00027397,5]
[338233120,1726404639111,-500.0,0.00027397,5]
[338233121,1726404639121,-592.27,0.00027397,5]
[338233122,1726404639131,-500.0,0.00027397,5]
[338233123,1726404639142,-500.0,0.00027397,5]
[338233124,1726404639152,-500.0,0.00027397,5]
[338233125,1726404639162,-500.0,0.00027397,5]
[338233126,1726404639172,-509.78280988,0.00027397,5]
[338233127,1726404639181,-500.0,0.00027397,5]
[338233128,1726404639192,-500.0,0.00027397,5]
[338233129,1726404639202,-500.0,0.00027397,5]
[338233130,1726404639212,-500.0,0.00027397,5]
[338233131,1726404639223,-500.0,0.00027397,5]
[338233132,1726404639233,-500.0,0.00027397,5]
[338233133,1726404639243,-500.0,0.00027397,5]
[338233134,1726404639254,-503.37438399,0.00027397,5]
[338233135,1726404639265,-500.0,0.00027397,5]
[338233136,1726404639276,-500.0,0.00027397,5]
[338233137,1726404639286,-500.0,0.00027397,5]
[338233138,1726404639297,-500.0,0.00027397,5]
[338233140,1726404639307,-500.0,0.00027397,5]
[338233141,1726404639320,-500.0,0.00027397,5]
[338233142,1726404639330,-500.0,0.00027397,5]
[338233143,1726404639340,-500.0,0.00027397,5]
[338233144,1726404639351,-500.0,0.00027397,5]
[338233146,1726404639362,-162.90486281,0.00027397,5]
[338233148,1726404639373,-538.57,0.00027397,5]
[338233149,1726404639384,-500.0,0.00027397,5]
[338233150,1726404639394,-151.0,0.00027397,7]
[338233151,1726404639405,-500.0,0.00027397,5]
[338233153,1726404639416,-500.0,0.00027397,5]
[338233155,1726404639427,-151.0,0.00027397,7]
[338233157,1726404639436,-151.0,0.00027397,7]
[338233159,1726404639446,-151.0,0.00027397,7]
[338233161,1726404639455,-151.0,0.00027397,7]
[338233163,1726404639464,-166.522885,0.00027397,7]
[338233165,1726404639473,-508.72097467,0.00027397,5]
[338233167,1726404639484,-500.0,0.00027397,5]
[338233169,1726404639494,-503.27452126,0.00027397,5]
[338233171,1726404639504,-524.5008419,0.00027397,5]
[338233173,1726404639513,-1231.73,0.00027397,5]
[338233175,1726404639524,-500.0,0.00027397,5]
[338233178,1726404639534,-500.0,0.00027397,5]
[338233180,1726404639544,-500.0,0.00027397,5]
[338233182,1726404639553,-1600.31,0.00027397,5]
[338233184,1726404639563,-507.61399502,0.00027397,5]
[338233186,1726404639572,-500.0,0.00027397,5]
[338233188,1726404639582,-500.0,0.00027397,5]
[338233190,1726404639593,-500.0,0.00027397,5]
[338233192,1726404639604,-505.95135139,0.00027397,5]
[338233194,1726404639614,-1258.57,0.00027397,5]
[338233196,1726404639624,-766.85,0.00027397,5]
[338233198,1726404639635,-500.0,0.00027397,5]
[338233200,1726404639645,-523.96,0.00027397,5]
[338233202,1726404639655,-151.0,0.00027397,7]
[338233204,1726404639664,-154.413798,0.00027397,7]
[338233206,1726404639675,-500.0,0.00027397,5]
[338233209,1726404639687,-500.0,0.00027397,5]
[338233210,1726404639696,-500.0,0.00027397,5]
[338233212,1726404639706,-500.0,0.00027397,5]
[338233213,1726404639715,-500.0,0.00027397,5]
[338233215,1726404639725,-500.0,0.00027397,5]
[338233217,1726404639735,-484.66903566,0.00027397,5]
[338233219,1726404639745,-588.61,0.00027397,5]
[338233220,1726404639758,-501.67689168,0.00027397,5]
[338233221,1726404639768,-500.0,0.00027397,5]
[338233222,1726404639777,-504.01641916,0.00027397,5]
[338233223,1726404639787,-500.0,0.00027397,5]
[338233224,1726404639797,-500.0,0.00027397,5]
[338233225,1726404639807,-500.0,0.00027397,5]
[338233226,1726404639817,-500.0,0.00027397,5]
[338233227,1726404639826,-503.42424978,0.00027397,5]
[338233228,1726404639837,-500.0,0.00027397,5]
[338233229,1726404639848,-500.0,0.00027397,5]
[338233230,1726404639859,-500.0,0.00027397,5]
[338233231,1726404639871,-809.56,0.00027397,5]
[338233232,1726404639881,-732.48,0.00027397,5]
[338233233,1726404639891,-500.0,0.00027397,5]
[338233234,1726404639901,-500.0,0.00027397,5]
[338233235,1726404639911,-500.0,0.00027397,5]
[338233236,1726404639920,-817.77,0.00027397,5]
[338233237,1726404639929,-500.0,0.00027397,5]
[338233238,1726404639939,-500.0,0.00027397,5]
[338233239,1726404639948,-834.13,0.00027397,5]
[338233240,1726404639958,-500.0,0.00027397,5]
[338233241,1726404639968,-500.0,0.00027397,5]
[338233242,1726404639978,-694.51,0.00027397,5]
[338233243,1726404639988,-500.0,0.00027397,5]
[338233244,1726404639998,-500.0,0.00027397,5]
[338233245,1726404640008,-248.84198275,0.00027397,5]
[338233246,1726404640018,-505.3132136,0.00027397,5]
[338233247,1726404640028,-501.27149116,0.00027397,5]
[338233248,1726404640038,-500.0,0.00027397,5]
[338233249,1726404640048,-832.27,0.00027397,5]
[338233250,1726404640057,-500.0,0.00027397,5]
[338233251,1726404640067,-500.0,0.00027397,5]
[338233252,1726404640076,-3511.14,0.00027397,5]
[338233253,1726404640086,-595.37004629,0.00027397,5]
[338233254,1726404640097,-588.03,0.00027397,5]
[338233255,1726404640106,-2373.15,0.00027397,5]
[338233256,1726404640116,-500.0,0.00027397,5]
[338233257,1726404640127,-500.0,0.00027397,5]
[338233258,1726404640137,-502.21930332,0.00027397,5]
[338233259,1726404640146,-500.0,0.00027397,5]
[338233260,1726404640156,-500.0,0.00027397,5]
[338233261,1726404640166,-1105.61,0.00027397,5]
[338233262,1726404640175,-500.0,0.00027397,5]
[338233263,1726404640185,-500.0,0.00027397,5]
[338233264,1726404640194,-500.0,0.00027397,5]
[338233265,1726404640203,-500.0,0.00027397,5]
[338233266,1726404640213,-500.0,0.00027397,2]
[338233267,1726404640222,-500.0,0.00027397,5]
[338233268,1726404640231,-381.48499014,0.00027397,5]
[338233269,1726404640240,-500.0,0.00027397,5]
[338233270,1726404640250,-518.52633962,0.00027397,5]
[338233271,1726404640259,-500.0,0.00027397,5]
[338233272,1726404640270,-500.0,0.00027397,5]
[338233273,1726404640281,-500.0,0.00027397,5]
[338233274,1726404640292,-500.0,0.00027397,5]
[338233275,1726404640303,-500.0,0.00027397,5]
[338233276,1726404640314,-500.0,0.00027397,5]
[338233277,1726404640325,-934.1,0.00027397,5]
[338233278,1726404640335,-661.69,0.00027397,5]
[338233279,1726404640346,-500.0,0.00027397,5]
[338233280,1726404640356,-708.16,0.00027397,5]
[338233281,1726404640366,-496.5275,0.00027397,7]
[338233282,1726404640376,-496.5275,0.00027397,7]
[338233283,1726404640386,-496.5275,0.00027397,7]
[338233284,1726404640396,-496.5275,0.00027397,7]
[338233285,1726404640406,-496.5275,0.00027397,7]
[338233286,1726404640419,-496.5275,0.00027397,7]
[338233287,1726404640429,-496.5275,0.00027397,7]
[338233288,1726404640441,-496.5275,0.00027397,7]
[338233289,1726404640450,-496.5275,0.00027397,7]
[338233290,1726404640459,-496.5275,0.00027397,7]
[338233291,1726404640469,-496.5275,0.00027397,7]
[338233292,1726404640478,-496.5275,0.00027397,7]
[338233293,1726404640488,-496.5275,0.00027397,7]
[338233294,1726404640498,-496.5275,0.00027397,7]
[338233295,1726404640507,-496.5275,0.00027397,7]
[338233296,1726404640517,-1430.86,0.00027397,2]
[338233297,1726404640526,-496.5275,0.00027397,7]
[338233298,1726404640536,-501.86704698,0.00027397,5]
[338233299,1726404640546,-496.5275,0.00027397,7]
[338233300,1726404640555,-496.5275,0.00027397,7]
[338233301,1726404640565,-496.5275,0.00027397,7]
[338233302,1726404640574,-496.527494,0.00027397,7]
[338233303,1726404640583,-500.0,0.00027397,5]
[338233304,1726404640593,-1177.39,0.00027397,5]
[338233305,1726404640602,-748.97,0.00027397,5]
[338233306,1726404640612,-1012.04493447,0.00027397,5]
[338233307,1726404640621,-500.0,0.00027397,5]
[338233308,1726404640631,-509.67420445,0.00027397,5]
[338233309,1726404640642,-502.59672116,0.00027397,5]
[338233310,1726404640652,-524.61,0.00027397,5]
[338233311,1726404640662,-500.0,0.00027397,5]
[338233312,1726404640672,-503.65415218,0.00027397,5]
[338233313,1726404640684,-500.0,0.00027397,5]
[338233314,1726404640695,-681.96,0.00027397,5]
[338233315,1726404640705,-500.0,0.00027397,5]
[338233316,1726404640716,-500.0,0.00027397,5]
[338233317,1726404640726,-500.0,0.00027397,5]
[338233318,1726404640737,-1012.71,0.00027397,5]
[338233319,1726404640749,-1701.19,0.00027397,5]
[338233320,1726404640763,-428.29147236,0.00027397,5]
[338233321,1726404640775,-500.0,0.00027397,2]
[338233322,1726404640786,-500.0,0.00027397,5]
[338233323,1726404640796,-500.0,0.00027397,5]
[338233324,1726404640805,-500.0,0.00027397,5]
[338233325,1726404640814,-500.0,0.00027397,5]
[338233326,1726404640823,-502.03853674,0.00027397,5]
[338233327,1726404640832,-500.0,0.00027397,5]
[338233328,1726404640842,-500.0,0.00027397,5]
[338233329,1726404640853,-502.03271641,0.00027397,5]
[338233330,1726404640870,-500.0,0.00027397,5]
[338233331,1726404640881,-500.0,0.00027397,5]
[338233332,1726404640893,-500.0,0.00027397,5]
[338233333,1726404640904,-277.87841773,0.00027397,5]
[338233334,1726404640913,-502.68507948,0.00027397,5]
[338233335,1726404640923,-277.36446243,0.00027397,5]
[338233336,1726404640932,-500.97858093,0.00027397,5]
[338233337,1726404640943,-500.0,0.00027397,5]
[338233338,1726404640952,-500.0,0.00027397,5]
[338233339,1726404640962,-516.75270357,0.00027397,5]
[338233340,1726404640974,-500.0,0.00027397,5]
[338233341,1726404640985,-500.0,0.00027397,5]
[338233342,1726404640996,-500.0,0.00027397,5]
[338233343,1726404641006,-1212.59,0.00027397,5]
[338233344,1726404641016,-500.0,0.00027397,5]
[338233345,1726404641026,-500.0,0.00027397,5]
[338233346,1726404641035,-553.89843447,0.00027397,5]
[338233347,1726404641046,-3443.25,0.00027397,5]
[338233348,1726404641057,-500.0,0.00027397,5]
[338233349,1726404641067,-1243.79,0.00027397,5]
[338233350,1726404641076,-584.15,0.00027397,5]
[338233351,1726404641085,-500.0,0.00027397,5]
[338233352,1726404641095,-198.335959,0.00027397,7]
[338233353,1726404641105,-198.335959,0.00027397,7]
[338233354,1726404641114,-500.0,0.00027397,5]
[338233355,1726404641123,-198.335959,0.00027397,7]
[338233356,1726404641133,-198.335959,0.00027397,7]
[338233357,1726404641144,-198.335959,0.00027397,7]
[338233358,1726404641155,-198.335959,0.00027397,7]
[338233359,1726404641166,-198.335959,0.00027397,7]
[338233360,1726404641177,-198.335959,0.00027397,7]
[338233361,1726404641186,-198.335959,0.00027397,7]
[338233362,1726404641196,-198.335959,0.00027397,7]
[338233363,1726404641207,-198.335959,0.00027397,7]
[338233364,1726404641216,-267.71764701,0.00027397,5]
[338233365,1726404641226,-198.335959,0.00027397,7]
[338233366,1726404641235,-198.335959,0.00027397,7]
[338233367,1726404641246,-500.0,0.00027397,5]
[338233368,1726404641256,-198.335959,0.00027397,7]
[338233369,1726404641265,-500.0,0.00027397,5]
[338233370,1726404641274,-198.335959,0.00027397,7]
[338233371,1726404641283,-500.0,0.00027397,5]
[338233372,1726404641293,-198.335959,0.00027397,7]
[338233373,1726404641302,-198.335959,0.00027397,7]
[338233374,1726404641311,-198.335959,0.00027397,7]
[338233375,1726404641320,-198.335959,0.00027397,7]
[338233376,1726404641329,-198.335962,0.00027397,7]